bitfinex/quotes_ETHUSD_20250731
["timestamp","ask_amount","ask_price","bid_price","bid_amount"]
[1753984605614,4.52762413,3780.9,3780.5,0.132]
[1753984605910,0.24440039,3780.8,3780.6,4.168]
[1753984606081,2.88938611,3780.8,3780.6,4.168]
[1753984606281,0.24440039,3780.7,3780.6,4.168]
[1753984606682,0.24440039,3780.7,3780.6,4.663]
[1753984606882,3.0,3781.1,3780.6,4.663]
[1753984607082,0.24440039,3781.0,3780.6,4.663]
[1753984607278,0.24440039,3781.0,3780.9,0.132]
[1753984607497,0.24440039,3781.0,3780.9,4.3]
[1753984607715,2.88920335,3781.0,3780.9,4.3]
[1753984608098,2.64504823,3780.7,3780.1,6.351]
[1753984608294,0.24440039,3780.6,3780.2,4.168]
[1753984608493,2.64496519,3780.8,3780.2,4.168]
[1753984608494,2.64496519,3780.8,3780.6,0.132]
[1753984608699,2.64496519,3780.8,3780.7,4.168]
[1753984609085,2.64469184,3781.2,3780.7,4.168]
[1753984609287,2.64494286,3780.8,3780.7,4.168]
[1753984609688,2.64480296,3781.0,3780.7,4.168]
[1753984609917,2.64494286,3780.8,3780.7,4.168]
[1753984610117,2.64501282,3780.7,3780.6,0.132]
[1753984610289,2.64501282,3780.7,3780.6,4.3]
[1753984610490,3.60321282,3780.7,3780.6,4.3]
[1753984610688,3.60321282,3780.7,3780.6,4.168]
[1753984610904,3.73521282,3780.7,3780.6,4.168]
[1753984611146,2.77701282,3780.7,3780.6,4.168]
[1753984611443,4.34120565,3780.7,3780.6,4.168]
[1753984612247,2.64501282,3780.7,3780.6,4.168]
[1753984612744,0.132,3781.1,3780.6,4.168]
[1753984612911,2.64480574,3781.0,3780.7,0.495]
[1753984613255,2.64475831,3781.1,3780.8,0.132]
[1753984613451,2.64475831,3781.1,3780.9,4.168]
[1753984613653,2.64480296,3781.0,3780.9,4.168]
[1753984613948,2.64475555,3781.1,3780.9,4.168]
[1753984614454,2.64480296,3781.0,3780.9,4.168]
[1753984615048,0.6329,3781.4,3780.9,4.168]
[1753984615352,3.0,3781.2,3780.9,4.168]
[1753984615527,3.132,3781.4,3780.9,4.168]
[1753984615735,2.64466363,3781.2,3780.9,4.168]
[1753984616151,2.64474065,3781.1,3780.9,4.168]
[1753984616358,2.64680296,3781.0,3780.9,4.168]
[1753984617352,0.002,3781.0,3780.9,4.168]
[1753984617537,0.002,3781.0,3780.9,4.663]
[1753984619735,0.002,3781.0,3780.9,4.168]
[1753984620335,2.64680296,3781.0,3780.8,0.132]
[1753984620536,2.64536267,3780.2,3779.5,0.496]
[1753984620861,5.64578262,3779.6,3779.5,0.001]
[1753984621058,6.19578262,3779.6,3779.5,0.001]
[1753984621258,6.73598262,3779.6,3779.5,0.001]
[1753984621569,5.77778262,3779.6,3779.5,0.001]
[1753984621751,7.67414699,3779.6,3779.5,0.001]
[1753984622086,3.132,3779.6,3779.5,0.001]
[1753984622249,3.0,3779.6,3779.5,0.001]
[1753984622847,0.132,3779.7,3779.6,2.64578262]
[1753984623051,2.77729514,3780.3,3779.6,0.9278]
[1753984623257,0.132,3780.3,3779.6,0.9278]
[1753984623472,0.132,3780.3,3779.6,0.495]
[1753984623638,2.77730767,3780.3,3779.7,0.132]
[1753984623974,0.132,3780.3,3779.8,4.168]
[1753984624177,2.64536906,3780.2,3779.8,4.168]
[1753984624375,9.94658864,3780.1,3779.6,4.167]
[1753984624575,0.132,3779.9,3779.6,4.167]
[1753984624869,0.132,3779.7,3779.6,4.167]
[1753984625914,3.132,3779.7,3779.6,4.167]
[1753984626332,5.64578262,3779.6,3779.5,4.168]
[1753984626489,0.9582,3779.6,3779.5,4.168]
[1753984626916,3.10308262,3779.6,3779.5,4.168]
[1753984627538,0.56711789,3779.7,3779.5,4.168]
[1753984627737,0.42021096,3779.6,3779.5,4.168]
[1753984628405,0.132,3779.7,3779.5,4.168]
[1753984628788,2.77773339,3779.7,3779.5,4.168]
[1753984629236,0.132,3779.7,3779.5,4.168]
[1753984629798,0.132,3779.9,3779.6,0.495]
[1753984629997,0.132,3779.9,3779.5,4.168]
[1753984630399,2.64564667,3779.8,3779.5,4.168]
[1753984630623,0.84231667,3779.8,3779.5,4.168]
[1753984630849,2.64564732,3779.8,3779.5,4.168]
[1753984631043,3.0,3779.8,3779.5,4.168]
[1753984631217,2.64564746,3779.8,3779.5,4.168]
[1753984631730,0.132,3779.9,3779.5,4.168]
[1753984631951,3.0,3779.7,3779.5,4.168]
[1753984632459,3.0,3779.8,3779.5,4.168]
[1753984632641,0.39656515,3779.7,3779.5,4.168]
[1753984632945,5.64578262,3779.6,3779.5,4.168]
[1753984633146,2.64598062,3779.4,3779.1,0.001]
[1753984633405,3.19606265,3779.2,3779.1,0.001]
[1753984633512,3.32806265,3779.2,3779.1,0.001]
[1753984633712,4.28626265,3779.2,3779.1,0.001]
[1753984633912,6.19613267,3779.1,3779.0,0.001]
[1753984634144,16.10965341,3779.1,3779.0,0.001]
[1753984634348,18.69553707,3779.1,3779.0,0.001]
[1753984634849,22.86253707,3779.1,3779.0,0.001]
[1753984636454,8.91401633,3779.1,3779.0,0.001]
[1753984636622,3.19697318,3777.9,3777.8,0.001]
[1753984636820,6.19697318,3777.9,3777.8,0.001]
[1753984637048,8.88149122,3777.9,3777.8,0.001]
[1753984637922,7.97689122,3777.9,3777.8,0.001]
[1753984638419,8.88149122,3777.9,3777.8,0.001]
[1753984638816,7.97689122,3777.9,3777.8,0.001]
[1753984639016,7.42689122,3777.9,3777.8,0.001]
[1753984639457,4.77991804,3777.9,3777.8,0.001]
[1753984639618,5.64697318,3777.9,3777.8,0.49]
[1753984639957,5.64697318,3777.9,3777.8,0.001]
[1753984640152,2.64697318,3777.9,3777.8,0.49]
[1753984640353,2.64697318,3777.9,3777.8,0.92]
[1753984640657,2.64697318,3777.9,3777.8,0.49]
[1753984641934,0.9046,3779.5,3777.8,5.109]
[1753984642136,4.188,3779.6,3777.9,1.4299]
[1753984642373,8.95532074,3778.3,3777.8,0.001]
[1753984642575,2.64606265,3779.2,3777.8,0.49]
[1753984642576,2.64682104,3778.2,3777.8,0.49]
[1753984642733,2.64684643,3778.1,3777.8,0.001]
[1753984643059,3.0,3778.7,3777.9,0.919]
[1753984643060,2.64676747,3778.2,3777.9,0.919]
[1753984643262,11.60170684,3778.8,3778.0,0.489]
[1753984643263,2.64683306,3778.1,3778.0,0.489]
[1753984643429,0.52935815,3778.1,3777.8,4.19]
[1753984643634,2.64676836,3778.2,3777.9,0.919]
[1753984643858,2.64676836,3778.2,3778.0,0.919]
[1753984644382,2.64664256,3778.4,3778.1,0.919]
[1753984644699,2.64655003,3778.6,3778.1,0.919]
[1753984644900,3.0,3779.3,3778.2,0.919]
[1753984645079,5.64634478,3778.8,3778.3,0.919]
[1753984645403,5.64634478,3778.8,3777.9,2.64690958]
[1753984645404,5.64634478,3778.8,3778.4,0.919]
[1753984645907,2.64634097,3778.9,3778.5,0.919]
[1753984646106,3.0,3778.6,3778.5,4.621]
[1753984646469,2.64646179,3778.7,3778.5,4.621]
[1753984646470,3.0,3778.7,3778.5,4.621]
[1753984646665,3.132,3778.7,3778.5,4.621]
[1753984646869,5.77841278,3778.7,3778.6,0.489]
[1753984647374,5.64641278,3778.7,3778.6,0.489]
[1753984647602,0.8292688,3778.7,3778.3,4.187]
[1753984647894,2.6466229,3778.4,3778.3,4.187]
[1753984648096,0.132,3778.5,3778.3,5.106]
[1753984648297,2.64656064,3778.5,3778.3,4.319]
[1753984648500,5.64647668,3778.7,3778.4,0.919]
[1753984648699,0.132,3778.8,3778.5,0.919]
[1753984648874,2.64628059,3778.9,3778.3,4.187]
[1753984649076,2.64593222,3779.4,3778.6,0.919]
[1753984649401,2.64595258,3779.4,3778.8,0.132]
[1753984649596,3.0,3779.4,3778.9,5.106]
[1753984649799,0.132,3779.5,3779.0,2.64617785]
[1753984649998,2.77787481,3779.5,3779.1,0.919]
[1753984650174,2.64599264,3779.3,3779.2,0.489]
[1753984650513,2.64620269,3779.0,3778.9,4.187]
[1753984650665,2.64627272,3778.9,3778.8,4.187]
[1753984650865,2.64621842,3779.0,3778.8,4.187]
[1753984651106,2.64622991,3779.0,3778.8,4.187]
[1753984651307,2.64615488,3779.1,3778.9,0.489]
[1753984651506,0.132,3779.2,3778.9,0.489]
[1753984651671,2.64620269,3779.0,3778.9,0.489]
[1753984652404,0.132,3779.2,3778.9,0.489]
[1753984652602,0.132,3779.2,3778.9,0.43]
[1753984652806,2.64613267,3779.1,3779.0,0.489]
[1753984653208,2.778078,3779.2,3779.0,0.489]
[1753984653809,0.002,3779.6,3779.1,0.919]
[1753984653810,50.0,3779.3,3779.1,0.919]
[1753984654030,50.0,3779.3,3778.8,4.187]
[1753984654031,50.0,3779.3,3778.9,0.132]
[1753984654314,50.0,3779.3,3779.2,1.051]
[1753984654910,52.64599264,3779.3,3779.2,0.132]
[1753984655206,52.64599264,3779.3,3779.2,4.671]
[1753984655207,50.0,3779.3,3779.2,4.671]
[1753984655417,52.64599264,3779.3,3779.2,4.182]
[1753984656117,53.84454051,3779.3,3779.2,4.18]
[1753984656282,2.64634275,3778.8,3778.7,4.312]
[1753984656475,0.0330784,3778.9,3778.6,4.18]
[1753984656703,2.77841278,3778.7,3778.6,4.18]
[1753984657105,2.64668488,3778.4,3778.2,0.132]
[1753984657320,2.64697318,3777.9,3777.8,0.001]
[1753984657500,2.77897318,3777.9,3777.8,0.001]
[1753984658804,5.77897318,3777.9,3777.8,0.001]
[1753984659125,6.68357318,3777.9,3777.8,0.001]
[1753984659287,6.20807318,3777.9,3777.8,0.001]
[1753984659488,6.71201948,3777.9,3777.8,0.001]
[1753984661208,7.61661948,3777.9,3777.8,0.001]
[1753984661835,6.71201948,3777.9,3777.8,0.001]
[1753984663717,7.61661948,3777.9,3777.8,0.001]
[1753984663923,7.14111948,3777.9,3777.8,0.001]
[1753984664304,6.71201948,3777.9,3777.8,0.001]
[1753984665245,6.71201948,3777.9,3777.8,0.49]
[1753984665246,5.77897318,3777.9,3777.8,0.49]
[1753984665442,5.77897318,3777.9,3777.8,0.92]
[1753984665443,0.132,3777.9,3777.8,0.92]
[1753984665751,2.64697318,3777.9,3777.8,0.92]
[1753984665967,2.64697318,3777.9,3777.8,0.001]
[1753984666818,2.64697318,3777.9,3777.8,0.4709]
[1753984667819,0.132,3778.0,3777.8,0.9456]
[1753984668014,0.132,3778.0,3777.9,0.9446]
[1753984668211,2.77890312,3778.0,3777.9,0.9446]
[1753984668411,2.77890312,3778.0,3777.9,0.4699]
[1753984668630,2.64697318,3777.9,3777.8,0.001]
[1753984668827,6.56047318,3777.9,3777.8,0.001]
[1753984669031,5.64697318,3777.9,3777.8,0.001]
[1753984669716,6.08917318,3777.9,3777.8,0.001]
[1753984670646,5.64697318,3777.9,3777.8,0.001]
[1753984670846,11.48917289,3777.9,3777.8,0.001]
[1753984671344,2.64725347,3777.5,3777.4,0.001]
[1753984672014,5.77925347,3777.5,3777.4,0.001]
[1753984674047,2.77925347,3777.5,3777.4,0.001]
[1753984674350,2.64725347,3777.5,3777.4,0.9456]
[1753984675554,2.64725347,3777.5,3777.4,0.4709]
[1753984676452,2.64725347,3777.5,3777.4,0.001]
[1753984676638,3.48989037,3777.5,3777.4,0.001]
[1753984679958,4.40339037,3777.5,3777.4,0.001]
[1753984680435,14.14450956,3777.5,3777.4,0.001]
[1753984680651,5.64767401,3776.9,3776.8,0.001]
[1753984680982,12.48770254,3776.9,3776.8,0.001]
[1753984681255,15.18615475,3776.9,3776.8,0.001]
[1753984681429,14.74395475,3776.9,3776.8,0.001]
[1753984681823,15.65745475,3776.9,3776.8,0.001]
[1753984682020,16.99155954,3776.9,3776.8,0.001]
[1753984683956,17.90505954,3776.9,3776.8,0.001]
[1753984684320,17.43375954,3776.9,3776.8,0.001]
[1753984684520,16.99155954,3776.9,3776.8,0.001]
[1753984685636,17.90505954,3776.9,3776.8,0.001]
[1753984686192,17.43375954,3776.9,3776.8,0.001]
[1753984686569,17.90505954,3776.9,3776.8,0.001]
[1753984687497,0.55,3776.7,3775.8,0.4699]
[1753984687792,2.64839269,3775.9,3775.8,0.4699]
[1753984687955,2.6486558,3775.5,3775.3,0.4699]
[1753984688162,5.81456399,3775.5,3775.0,0.9456]
[1753984688362,9.9524558,3775.5,3775.0,0.9456]
[1753984688583,11.32374084,3775.5,3775.0,0.4709]
[1753984689264,11.32374084,3775.5,3775.0,0.4757]
[1753984689464,11.32374084,3775.5,3775.2,0.4699]
[1753984689663,11.32474084,3775.5,3775.4,0.4709]
[1753984689865,9.9524558,3775.5,3775.4,0.9456]
[1753984690798,9.9524558,3775.5,3775.4,0.001]
[1753984691099,9.9524558,3775.5,3775.4,0.4709]
[1753984691279,5.7814558,3775.5,3775.4,0.001]
[1753984691483,9.9524558,3775.5,3775.4,0.001]
[1753984692308,11.21255994,3775.5,3775.4,0.001]
[1753984692518,11.21255994,3775.5,3775.4,0.9456]
[1753984692995,11.21255994,3775.5,3775.4,0.001]
[1753984693505,7.04155994,3775.5,3775.4,0.001]
[1753984693729,11.21355994,3775.5,3775.4,0.9456]
[1753984694034,7.04155994,3775.5,3775.4,0.9456]
[1753984694211,11.21255994,3775.5,3775.4,0.9456]
[1753984696627,2.64813787,3776.3,3775.6,2.64858565]
[1753984696809,2.64813787,3776.3,3775.5,5.1166]
[1753984696810,3.0,3776.2,3775.7,1.0848]
[1753984697000,3.1328,3776.3,3775.8,0.952]
[1753984697200,5.78091946,3776.3,3775.7,2.78127273]
[1753984697430,3.1328,3776.3,3775.9,0.952]
[1753984697744,3.0,3776.3,3776.0,1.0848]
[1753984697953,2.64799733,3776.5,3776.0,0.1328]
[1753984698121,2.64809477,3776.3,3776.1,0.952]
[1753984698315,2.64809477,3776.3,3776.0,0.1328]
[1753984698628,2.64809477,3776.3,3776.2,0.952]
[1753984698834,2.64823495,3776.1,3776.0,0.1328]
[1753984699018,2.64830508,3776.0,3775.9,0.4884]
[1753984699420,2.64844536,3775.8,3775.7,0.1328]
[1753984699629,2.64838891,3775.9,3775.7,0.1328]
[1753984699805,2.64838891,3775.9,3775.8,0.4884]
[1753984700135,2.64832606,3776.0,3775.8,0.4884]
[1753984700335,0.1328,3776.2,3775.7,0.1328]
[1753984700538,2.64785205,3776.7,3775.9,0.952]
[1753984700741,2.64796675,3776.5,3776.1,0.1328]
[1753984700915,3.0,3776.6,3776.2,5.123]
[1753984701128,0.132,3776.8,3776.3,0.952]
[1753984701336,0.132,3776.8,3776.4,0.952]
[1753984701644,2.64816482,3776.2,3776.1,0.1328]
[1753984701821,2.68126688,3776.2,3776.1,0.1328]
[1753984702158,7.37752204,3776.2,3776.1,0.1328]
[1753984702352,2.64844536,3775.8,3775.7,0.4884]
[1753984702864,2.64833738,3776.0,3775.7,0.4884]
[1753984702865,2.64839667,3775.9,3775.7,0.4884]
[1753984703075,2.64844536,3775.8,3775.7,0.952]
[1753984703214,0.1328,3776.0,3775.7,0.952]
[1753984703418,0.1328,3776.0,3775.8,0.952]
[1753984703651,2.78113702,3776.0,3775.8,0.952]
[1753984703852,8.96428074,3775.9,3775.4,0.001]
[1753984704056,3.0,3775.9,3775.4,0.001]
[1753984704258,2.6484707,3775.8,3775.5,0.952]
[1753984704563,2.64858565,3775.6,3775.5,0.4636]
[1753984705142,2.64838231,3775.9,3775.5,0.952]
[1753984705334,1.01586599,3776.0,3775.6,0.4884]
[1753984705571,2.6485155,3775.7,3775.6,0.4884]
[1753984706373,2.6486558,3775.5,3775.4,0.001]
[1753984707946,1.01586599,3776.0,3775.4,0.953]
[1753984708281,2.64857218,3775.7,3775.4,0.4646]
[1753984708602,2.64858854,3775.6,3775.5,0.952]
[1753984708753,2.6485176,3775.7,3775.5,0.952]
[1753984708958,2.64858565,3775.6,3775.5,0.952]
[1753984709281,2.64858565,3775.6,3775.5,0.4636]
[1753984709769,2.64858565,3775.6,3775.5,0.952]
[1753984710076,2.64858565,3775.6,3775.5,0.4884]
[1753984710468,2.6486558,3775.5,3775.4,4.171]
[1753984711091,2.6486558,3775.5,3775.4,0.001]
[1753984711256,15.17576888,3775.5,3775.4,0.001]
[1753984711455,15.14266069,3775.5,3775.4,0.001]
[1753984712243,6.17837995,3775.5,3775.4,0.001]
[1753984713770,16.07576069,3775.5,3775.4,0.001]
[1753984714356,15.14266069,3775.5,3775.4,0.001]
[1753984714563,16.20856069,3775.5,3775.4,0.001]
[1753984715076,16.75856069,3775.5,3775.4,1e-08]
[1753984715276,5.64886628,3775.2,3775.1,0.001]
[1753984715496,12.42192797,3775.2,3775.1,0.001]
[1753984715700,6.19893645,3775.1,3775.0,0.001]
[1753984716001,7.13203645,3775.1,3775.0,0.001]
[1753984716300,3.0,3774.3,3772.3,0.41431246]
[1753984716471,3.0,3774.3,3773.4,0.6212]
[1753984716472,2.64991917,3773.7,3773.4,0.6212]
[1753984716872,2.64991917,3773.7,3773.6,0.4894]
[1753984717079,2.64991917,3773.7,3773.6,0.001]
[1753984717286,5.78271917,3773.7,3773.6,0.001]
[1753984717487,6.62928458,3773.7,3773.6,0.001]
[1753984717724,7.09328458,3773.7,3773.6,0.001]
[1753984718261,7.6936793,3773.7,3773.6,0.001]
[1753984718506,5.6499894,3773.6,3772.6,0.4884]
[1753984718822,5.59376013,3773.7,3772.7,0.4636]
[1753984718823,3.0,3773.4,3772.7,0.4636]
[1753984718972,2.65047416,3773.0,3772.7,0.4636]
[1753984719310,2.65047416,3773.0,3772.8,0.952]
[1753984719506,2.65047416,3773.0,3772.5,4.3028]
[1753984719507,0.1328,3773.1,3772.5,4.3028]
[1753984719691,0.1328,3773.1,3772.6,0.952]
[1753984719915,2.65046065,3773.0,3772.7,0.952]
[1753984720120,2.65048106,3772.9,3772.8,0.952]
[1753984720322,2.65053809,3772.9,3772.5,4.7912]
[1753984720519,2.65048106,3772.9,3772.4,4.17]
[1753984720741,2.78328106,3772.9,3772.6,0.4884]
[1753984721047,2.78328106,3772.9,3772.7,0.4884]
[1753984721346,0.1328,3772.9,3772.7,0.4884]
[1753984721514,0.1328,3772.9,3772.8,0.4884]
[1753984721848,2.78328106,3772.9,3772.8,0.4884]
[1753984722143,0.84656541,3773.7,3772.8,0.952]
[1753984722324,3.0,3773.8,3772.8,0.952]
[1753984722325,7.171,3773.8,3772.9,0.952]
[1753984722528,2.65032021,3773.2,3772.9,0.4636]
[1753984722736,0.1328,3773.4,3773.0,0.4884]
[1753984723052,3.1328,3773.4,3773.1,0.952]
[1753984723343,0.31328,3773.4,3772.6,0.4884]
[1753984723547,2.65046541,3773.0,3772.6,0.4884]
[1753984723842,2.65050731,3772.9,3772.6,4.171]
[1753984724147,0.1328,3773.1,3772.7,0.4884]
[1753984724309,1.24103607,3773.1,3772.6,4.171]
[1753984724641,0.1328,3772.8,3772.7,0.952]
[1753984725512,2.78335131,3772.8,3772.7,0.952]
[1753984725711,0.1328,3772.8,3772.3,0.952]
[1753984726044,2.65068519,3772.7,3772.4,0.952]
[1753984726196,2.65068519,3772.7,3772.4,0.4636]
[1753984726529,2.65068519,3772.7,3772.3,4.171]
[1753984726530,2.65083236,3772.4,3772.3,4.171]
[1753984726733,2.65076476,3772.5,3772.3,4.6346]
[1753984726919,3.19403248,3772.7,3772.6,0.001]
[1753984727127,3.54339045,3772.7,3772.6,0.4646]
[1753984727296,3.0,3772.7,3772.6,0.9206]
[1753984728046,3.0,3773.1,3772.6,0.1338]
[1753984728259,3.0,3773.1,3772.7,0.9196]
[1753984728531,5.65035432,3773.1,3772.8,0.9196]
[1753984728733,0.1328,3773.2,3772.9,0.9196]
[1753984729041,3.0,3773.2,3772.9,0.9196]
[1753984729348,0.1328,3773.8,3773.1,0.1328]
[1753984729531,0.1328,3774.2,3773.2,7.28486794]
[1753984729731,3.0,3774.1,3773.7,0.1328]
[1753984729937,3.0,3774.1,3773.7,4.3038]
[1753984730230,2.64965831,3774.1,3773.8,0.4636]
[1753984730533,2.64973666,3774.0,3773.8,0.4636]
[1753984730732,3.8431964,3774.1,3773.9,0.4636]
[1753984730941,6.49284916,3774.1,3773.9,0.4636]
[1753984731442,0.1328,3774.2,3774.0,0.9196]
[1753984731644,3.0,3774.1,3774.0,0.9196]
[1753984732013,5.78238247,3774.2,3774.0,0.9196]
[1753984732209,2.64963832,3774.1,3773.8,0.4636]
[1753984732433,2.64970853,3774.0,3773.9,0.4636]
[1753984732734,2.64963832,3774.1,3773.7,4.3038]
[1753984732910,2.78237703,3774.2,3773.8,0.4636]
[1753984733238,3.0,3774.1,3773.9,0.9196]
[1753984733440,3.1328,3774.2,3774.0,0.9196]
[1753984733615,2.78238347,3774.2,3774.1,0.4636]
[1753984734002,0.1328,3774.2,3774.1,0.4636]
[1753984734202,0.1328,3774.2,3773.6,4.3028]
[1753984734203,3.0,3774.1,3773.7,0.4636]
[1753984734423,2.64976835,3774.0,3773.7,0.4636]
[1753984734706,2.64965584,3774.1,3773.8,0.4636]
[1753984735022,0.1328,3774.7,3773.9,1.0524]
[1753984735234,3.0,3774.5,3774.2,0.1328]
[1753984735458,0.61328,3774.5,3774.2,0.1328]
[1753984735600,2.78235234,3774.3,3773.8,0.1328]
[1753984735806,2.78235234,3774.3,3773.9,0.4636]
[1753984736000,2.64970853,3774.0,3773.9,0.4636]
[1753984736204,2.64970853,3774.0,3773.8,0.1328]
[1753984736518,2.64963832,3774.1,3773.7,0.1328]
[1753984736855,2.64965408,3774.1,3773.7,0.1328]
[1753984737363,2.64965408,3774.1,3773.8,0.4636]
[1753984737954,2.6496391,3774.1,3773.8,0.4636]
[1753984738841,1.3687927,3774.3,3773.9,0.9196]
[1753984738842,0.1328,3774.3,3773.9,0.9196]
[1753984739039,0.1328,3774.3,3773.7,4.3028]
[1753984739040,5.78230545,3774.3,3774.0,0.9196]
[1753984739344,5.78230545,3774.3,3774.1,0.4636]
[1753984739543,3.1328,3774.3,3774.1,0.4636]
[1753984739756,3.0,3774.8,3774.2,0.9196]
[1753984740039,3.0,3774.4,3774.2,5.2214]
[1753984740243,2.64943467,3774.4,3774.2,4.3018]
[1753984740625,3.0,3774.4,3774.2,4.7654]
[1753984740810,3.0,3774.5,3774.2,4.3018]
[1753984741016,2.64937038,3774.5,3774.2,0.5964]
[1753984741210,0.1328,3774.7,3774.3,0.456]
[1753984741414,0.1328,3774.7,3774.4,0.9196]
[1753984741657,0.13493942,3775.4,3774.4,0.9196]
[1753984741658,2.64909437,3774.9,3774.5,0.1328]
[1753984741815,5.64915151,3774.8,3774.5,0.5964]
[1753984742015,2.64928734,3774.6,3774.5,0.1328]
[1753984742214,0.1328,3774.6,3774.1,4.169]
[1753984742543,3.0,3774.4,3774.0,4.3018]
[1753984742742,2.78241814,3774.2,3774.0,4.169]
[1753984743118,0.1328,3774.2,3774.0,4.169]
[1753984743336,0.1328,3774.2,3774.0,4.6326]
[1753984743962,2.78237957,3774.2,3774.0,4.6326]
[1753984744375,2.78237957,3774.2,3774.0,0.4636]
[1753984744530,2.64963832,3774.1,3774.0,0.4636]
[1753984744714,0.1328,3774.2,3774.1,0.9196]
[1753984744925,0.1328,3774.7,3774.1,1.0524]
[1753984745126,0.24539212,3774.6,3774.2,0.9196]
[1753984745322,9.39448074,3775.6,3774.3,5.0876]
[1753984745528,0.1328,3775.1,3774.5,0.1328]
[1753984745756,0.2453871,3775.0,3774.6,0.9196]
[1753984745944,0.4907742,3774.9,3774.8,0.1328]
[1753984746151,0.2453871,3774.9,3774.8,4.3008]
[1753984746661,0.2453871,3774.9,3774.8,5.2204]
[1753984747036,0.2453871,3774.9,3774.8,4.7644]
[1753984747240,0.2453871,3774.9,3774.6,4.168]
[1753984747241,2.64915709,3774.8,3774.6,4.168]
[1753984747443,0.2453871,3774.7,3774.6,4.168]
[1753984748160,0.2453871,3774.8,3774.6,4.168]
[1753984748528,0.2453871,3774.8,3774.6,4.6316]
[1753984748731,0.002,3774.9,3774.7,0.4636]
[1753984748931,0.49268632,3774.9,3774.7,0.4636]
[1753984749163,2.89454345,3774.8,3774.6,4.168]
[1753984749344,0.24534316,3774.7,3774.6,4.168]
[1753984750083,2.64938517,3774.5,3774.3,4.167]
[1753984750258,3.07167779,3774.7,3774.3,4.167]
[1753984750448,0.24527176,3774.6,3774.3,4.167]
[1753984750646,2.64940805,3774.5,3774.3,4.167]
[1753984751353,0.42244483,3774.7,3774.4,4.167]
[1753984751553,0.002,3774.9,3774.5,0.4636]
[1753984751757,0.002,3774.9,3774.6,4.623]
[1753984751758,50.0,3774.8,3774.6,4.623]
[1753984752066,50.0,3774.8,3774.7,1.0524]
[1753984752267,2.64956812,3774.2,3774.1,0.4636]
[1753984752452,2.64956812,3774.2,3774.1,4.6306]
[1753984752661,2.64956812,3774.2,3774.1,5.0866]
[1753984753556,3.0,3774.5,3773.6,0.456]
[1753984753758,2.649765,3774.0,3773.7,4.6306]
[1753984754064,3.0,3774.5,3773.8,0.9196]
[1753984754241,2.64960246,3774.2,3773.8,0.9196]
[1753984754443,3.0,3774.5,3773.9,0.9196]
[1753984754665,50.0,3774.8,3774.2,2.64956124]
[1753984754877,0.24514917,3774.7,3774.3,0.9196]
[1753984755086,0.24514917,3774.7,3774.4,4.167]
[1753984755248,2.64928734,3774.6,3774.4,4.6306]
[1753984755445,2.64923525,3774.7,3774.4,4.167]
[1753984755651,0.24514362,3774.6,3774.5,0.4636]
[1753984755846,0.24514341,3774.6,3774.5,0.4636]
[1753984756071,2.89437971,3774.7,3774.5,0.4636]
[1753984756271,2.64922258,3774.7,3774.5,0.4636]
[1753984756478,50.0,3774.8,3774.6,0.4668]
[1753984756860,50.0,3774.8,3774.7,4.166]
[1753984757071,52.89426155,3774.8,3774.7,4.166]
[1753984757659,52.64914697,3774.8,3774.7,4.166]
[1753984757978,52.89424172,3774.8,3774.7,4.166]
[1753984758176,52.89424172,3774.8,3774.3,0.4668]
[1753984758177,61.21649814,3774.8,3774.0,0.4668]
[1753984758395,2.64968182,3774.1,3773.6,0.4668]
[1753984758586,2.64968182,3774.1,3773.7,4.166]
[1753984758779,2.64928734,3774.6,3773.8,0.4668]
[1753984758984,2.64928734,3774.6,3773.2,6.364]
[1753984758985,3.0,3774.2,3773.9,4.166]
[1753984759190,2.64987458,3773.8,3773.2,6.364]
[1753984759375,2.64993212,3773.7,3773.3,5.0715]
[1753984759576,2.64976303,3774.0,3773.3,5.0715]
[1753984759577,2.64987535,3773.8,3773.4,0.4668]
[1753984759805,2.64992807,3773.7,3773.4,0.4668]
[1753984760104,2.64978505,3773.9,3773.5,0.9055]
[1753984760278,2.6496881,3774.1,3773.3,4.166]
[1753984760487,3.0,3774.4,3773.6,0.9055]
[1753984760804,2.64944012,3774.4,3773.7,3.5553772]
[1753984760970,2.64944012,3774.4,3773.8,7.72132697]
[1753984761275,5.6492177,3774.7,3773.9,0.9055]
[1753984761464,5.6492177,3774.7,3773.8,6.81578671]
[1753984761675,3.0,3774.7,3774.0,0.9055]
[1753984761874,50.0,3774.8,3774.1,0.9055]
[1753984762074,52.64920266,3774.8,3774.2,7.2823593]
[1753984762304,52.64920266,3774.8,3774.7,0.1328]
[1753984762504,52.64920266,3774.8,3774.7,4.2988]
[1753984762703,50.0,3774.8,3774.7,5.2043]
[1753984763975,50.0,3774.8,3774.7,7.85351715]
[1753984764180,50.0,3774.8,3774.7,8.74393458]
[1753984767216,44.24355723,3774.8,3774.7,9.29393458]
[1753984770184,44.24555723,3774.8,3774.7,9.29393458]
[1753984770621,14.50440316,3774.8,3774.7,16.55393458]
[1753984770824,0.33074551,3774.8,3774.7,16.55393458]
[1753984771023,0.002,3774.9,3774.8,6.19914697]
[1753984771235,0.002,3774.9,3774.8,8.42267393]
[1753984771530,0.002,3774.9,3774.8,12.68267393]
[1753984772427,0.002,3774.9,3774.8,16.84567393]
[1753984773311,0.002,3774.9,3774.8,12.68267393]